[Event "Cerrado Blitz Quart 2018"]
[Site "Quart (Valencia), Spain"]
[Date "2018.08.30"]
[Round "8.4"]
[White "Alonso Garcia, Aaron"]
[Black "Ordoñez Carrasco, Jorge"]
[Result "1-0"]
[TimeControl "7 minutos +3s por jugada"]
[WhiteTitle "FM"]
[WhiteFideId "24521060"]
[BlackFideId "24529826"]
[WhiteElo "1604"]
[BlackElo "1531"]

1. e4 {[%clk 00:07:05]} c5 {[%clk 00:07:05]} {[%emt 00:00:01]} 2. Nf3 {[%clk
00:07:06]} {[%emt 00:00:02]} d6 {[%clk 00:07:07]} 3. d4 {[%clk 00:07:08]} cxd4
{[%clk 00:07:09]} 4. Nxd4 {[%clk 00:07:11]} Nf6 {[%clk 00:07:11]} {[%emt
00:00:01]} 5. Nc3 {[%clk 00:07:13]} g6 {[%clk 00:07:14]} {[%emt 00:00:01]} 6.
Bc4 {[%clk 00:07:14]} {[%emt 00:00:02]} Bg7 {[%clk 00:07:16]} 7. Bb3 {[%clk
00:07:15]} {[%emt 00:00:02]} O-O {[%clk 00:07:18]} {[%emt 00:00:01]} 8. f3
{[%clk 00:07:17]} {[%emt 00:00:01]} Nc6 {[%clk 00:07:18]} {[%emt 00:00:02]} 9.
Be3 Bd7 10. Qd2 {[%clk 00:07:21]} Rc8 {[%clk 00:07:08]} {[%emt 00:00:15]} 11.
O-O-O {[%clk 00:07:22]} {[%emt 00:00:02]} Ne5 {[%clk 00:07:01]} {[%emt
00:00:10]} 12. g4 {[%clk 00:07:23]} {[%emt 00:00:01]} Nc4 {[%clk 00:06:57]}
{[%emt 00:00:07]} 13. Bxc4 {[%clk 00:07:25]} {[%emt 00:00:02]} Rxc4 {[%clk
00:06:59]} 14. h4 {[%clk 00:07:27]} {[%emt 00:00:01]} b5 {[%clk 00:07:00]}
{[%emt 00:00:03]} 15. h5 {[%clk 00:07:10]} {[%emt 00:00:19]} b4 {[%clk
00:06:05]} {[%emt 00:00:59]} 16. Nce2 {[%emt 00:00:03]} a5 17. Bh6 {[%clk
00:07:07]} {[%emt 00:00:06]} Qc7 {[%clk 00:05:00]} {[%emt 00:01:10]} 18. Bxg7
Kxg7 {[%clk 00:05:02]} 19. hxg6 {[%clk 00:06:46]} {[%emt 00:00:01]} fxg6 {[%clk
00:04:59]} {[%emt 00:00:05]} 20. Qh6+ {[%clk 00:06:32]} {[%emt 00:00:17]} Kg8
{[%clk 00:05:01]} {[%emt 00:00:01]} 21. g5 {[%clk 00:06:34]} Nh5 {[%clk
00:04:54]} {[%emt 00:00:10]} 22. Rxh5 {[%clk 00:06:37]} gxh5 {[%clk 00:04:52]}
{[%emt 00:00:04]} 23. g6 {[%clk 00:06:40]} hxg6 {[%clk 00:04:44]} {[%emt
00:00:12]} 24. Qxg6+ {[%clk 00:06:42]} Kh8 {[%clk 00:04:46]} 25. Rh1 {[%clk
00:06:43]} {[%emt 00:00:02]} 1-0

[Event "Cerrado Blitz Quart 2018"]
[Site "Quart (Valencia), Spain"]
[Date "2018.08.30"]
[Round "8.5"]
[White "Diaz Velandia, J Manuel"]
[Black "Chernikov, Vladimir"]
[Result "1-0"]
[TimeControl "7 minutos +3s por jugada"]
[WhiteTitle "FM"]
[WhiteFideId "3901939"]
[BlackFideId "14112914"]
[WhiteElo "2367"]
[BlackElo "2035"]

1. d4 {[%clk 00:07:05]} {[%emt 00:04:03]} Nf6 {[%clk 00:07:06]} 2. Nf3 {[%clk
00:07:07]} b6 {[%clk 00:07:08]} {[%emt 00:00:01]} 3. e3 {[%clk 00:07:09]} Bb7
{[%clk 00:07:10]} 4. Bd3 {[%clk 00:07:11]} g6 {[%emt 00:00:04]} 5. O-O {[%emt
00:00:01]} Bg7 6. Nbd2 {[%clk 00:07:13]} O-O {[%clk 00:07:15]} {[%emt
00:00:02]} 7. c3 {[%clk 00:07:15]} d6 {[%clk 00:07:13]} {[%emt 00:00:06]} 8. e4
{[%clk 00:07:17]} {[%emt 00:00:01]} e6 {[%clk 00:07:11]} {[%emt 00:00:05]} 9.
Re1 {[%clk 00:07:19]} Nbd7 {[%clk 00:07:12]} {[%emt 00:00:03]} 10. Nf1 {[%clk
00:07:19]} {[%emt 00:00:03]} e5 {[%clk 00:07:07]} {[%emt 00:00:08]} 11. Ng3
{[%clk 00:07:21]} Qe7 {[%clk 00:07:00]} {[%emt 00:00:10]} 12. Bg5 {[%clk
00:07:22]} {[%emt 00:00:02]} h6 {[%clk 00:06:58]} {[%emt 00:00:05]} 13. Bd2
{[%clk 00:07:24]} Rae8 {[%clk 00:06:44]} {[%emt 00:00:17]} 14. h4 {[%clk
00:07:25]} {[%emt 00:00:02]} Kh8 {[%clk 00:06:05]} {[%emt 00:00:42]} 15. h5
{[%clk 00:07:27]} {[%emt 00:00:01]} Nxh5 {[%clk 00:06:06]} {[%emt 00:00:02]} 16.
Nxh5 {[%clk 00:07:28]} {[%emt 00:00:02]} gxh5 {[%clk 00:06:08]} {[%emt
00:00:02]} 17. g3 {[%clk 00:07:19]} {[%emt 00:00:12]} Rg8 {[%clk 00:05:56]}
{[%emt 00:00:14]} 18. Nh4 {[%clk 00:07:18]} {[%emt 00:00:04]} exd4 {[%clk
00:05:48]} {[%emt 00:00:11]} 19. Nf5 {[%clk 00:07:20]} Qf6 {[%clk 00:05:33]}
{[%emt 00:00:18]} 20. cxd4 {[%clk 00:07:21]} {[%emt 00:00:03]} c5 {[%clk
00:05:26]} {[%emt 00:00:10]} 21. Qxh5 {[%clk 00:07:18]} {[%emt 00:00:06]} cxd4
{[%clk 00:05:00]} {[%emt 00:00:28]} 22. Bxh6 {[%clk 00:06:22]} {[%emt
00:00:59]} Bxh6 {[%clk 00:04:51]} {[%emt 00:00:12]} 23. Nxh6 {[%clk 00:06:23]}
{[%emt 00:00:01]} Kg7 {[%clk 00:01:56]} {[%emt 00:02:58]} 24. Nxg8 {[%clk
00:05:44]} {[%emt 00:00:42]} Rxg8 {[%clk 00:01:54]} {[%emt 00:00:05]} 25. Qg4+
{[%clk 00:05:45]} {[%emt 00:00:02]} Kf8 {[%clk 00:01:55]} {[%emt 00:00:02]} 26.
Qxd7 {[%clk 00:05:15]} {[%emt 00:00:33]} Qf3 {[%clk 00:01:57]} 27. Qd8+ {[%clk
00:05:17]} {[%emt 00:00:02]} Kg7 {[%clk 00:01:59]} 28. Qg5+ {[%clk 00:05:19]}
{[%emt 00:00:02]} Kf8 {[%clk 00:02:00]} {[%emt 00:00:02]} 29. Qh6+ {[%clk
00:05:06]} {[%emt 00:00:16]} Ke7 {[%clk 00:01:58]} {[%emt 00:00:05]} 30. Qh4+
{[%clk 00:05:02]} {[%emt 00:00:07]} Kf8 {[%clk 00:01:50]} {[%emt 00:00:11]} 31.
Bf1 {[%clk 00:04:54]} {[%emt 00:00:11]} 1-0

[Event "Cerrado Blitz Quart 2018"]
[Site "Quart (Valencia), Spain"]
[Date "2018.08.30"]
[Round "9.1"]
[White "Chernikov, Vladimir"]
[Black "Pena Riasco, Alexander"]
[Result "1-0"]
[TimeControl "7 minutos +3s por jugada"]
[BlackTitle "FM"]
[WhiteFideId "14112914"]
[BlackFideId "4403339"]
[WhiteElo "2035"]
[BlackElo "2119"]

1. b3 {[%clk 00:07:04]} {[%emt 00:00:03]} d5 {[%clk 00:07:05]} {[%emt
00:00:04]} 2. Bb2 {[%clk 00:07:06]} Nf6 {[%clk 00:07:07]} 3. e3 {[%clk
00:07:03]} {[%emt 00:00:04]} Bf5 {[%clk 00:07:09]} {[%emt 00:00:04]} 4. Nf3
{[%clk 00:07:04]} {[%emt 00:00:03]} e6 {[%clk 00:07:11]} 5. h3 {[%clk
00:06:56]} {[%emt 00:00:09]} h6 {[%clk 00:06:59]} {[%emt 00:00:13]} 6. Be2
{[%clk 00:06:52]} {[%emt 00:00:14]} Be7 {[%clk 00:07:01]} {[%emt 00:00:04]} 7.
d3 {[%clk 00:06:51]} c5 {[%clk 00:07:03]} 8. Nbd2 {[%clk 00:06:52]} Nc6 {[%clk
00:07:05]} {[%emt 00:00:03]} 9. a3 {[%clk 00:06:49]} {[%emt 00:00:03]} b5
{[%clk 00:06:42]} {[%emt 00:00:24]} 10. c4 {[%clk 00:06:51]} {[%emt 00:00:32]}
bxc4 {[%clk 00:06:41]} 11. bxc4 {[%clk 00:06:51]} Qa5 {[%clk 00:06:29]} {[%emt
00:00:07]} 12. O-O {[%clk 00:06:38]} {[%emt 00:00:03]} O-O {[%clk 00:06:29]}
{[%emt 00:00:12]} 13. Qc2 {[%clk 00:06:37]} Rab8 {[%clk 00:06:16]} {[%emt
00:00:09]} 14. Bc3 {[%clk 00:06:38]} {[%emt 00:00:39]} Qc7 {[%clk 00:06:11]} 15.
Rfb1 {[%clk 00:06:31]} {[%emt 00:00:04]} dxc4 {[%clk 00:06:00]} 16. Nxc4 {[%clk
00:06:26]} {[%emt 00:00:08]} Nd5 {[%clk 00:05:59]} {[%emt 00:00:21]} 17. Bd2
{[%clk 00:05:55]} {[%emt 00:00:08]} Bh7 {[%clk 00:05:45]} {[%emt 00:00:16]} 18.
Rxb8 {[%clk 00:05:36]} {[%emt 00:00:22]} Rxb8 {[%clk 00:05:47]} {[%emt
00:00:32]} 19. Rb1 {[%clk 00:05:38]} Bf6 {[%clk 00:05:06]} {[%emt 00:00:14]} 20.
g3 {[%clk 00:05:39]} {[%emt 00:00:09]} Rxb1+ {[%clk 00:04:54]} {[%emt
00:00:08]} 21. Qxb1 {[%clk 00:05:41]} {[%emt 00:00:35]} Nc3 {[%clk 00:04:56]}
22. Bxc3 {[%clk 00:05:30]} {[%emt 00:00:07]} Bxc3 {[%clk 00:04:58]} 23. Qb5
{[%clk 00:05:17]} Bf5 {[%clk 00:04:19]} {[%emt 00:00:36]} 24. g4 {[%clk
00:04:58]} {[%emt 00:00:32]} Bg6 {[%clk 00:04:16]} {[%emt 00:00:07]} 25. Qxc5
{[%clk 00:04:50]} Qb7 {[%clk 00:04:18]} 26. Nd6 {[%clk 00:04:38]} {[%emt
00:00:14]} Bf6 {[%clk 00:03:52]} {[%emt 00:00:39]} 27. Nxb7 {[%emt 00:00:25]}
Bc3 28. Nd6 {[%emt 00:00:52]} 1-0

[Event "Cerrado Blitz Quart 2018"]
[Site "Quart (Valencia), Spain"]
[Date "2018.08.30"]
[Round "9.2"]
[White "Ordoñez Carrasco, Jorge"]
[Black "Diaz Velandia, J Manuel"]
[Result "0-1"]
[TimeControl "7 minutos +3s por jugada"]
[BlackTitle "FM"]
[WhiteFideId "24529826"]
[BlackFideId "3901939"]
[WhiteElo "1531"]
[BlackElo "2367"]

1. e4 {[%clk 00:07:05]} {[%emt 00:00:12]} c6 {[%clk 00:07:06]} 2. d4 {[%clk
00:07:05]} {[%emt 00:00:03]} d5 {[%clk 00:07:07]} 3. Nc3 {[%clk 00:07:06]} dxe4
{[%clk 00:07:09]} 4. Nxe4 {[%clk 00:07:08]} Nf6 {[%clk 00:07:09]} {[%emt
00:00:04]} 5. Nxf6+ {[%clk 00:06:45]} {[%emt 00:00:21]} exf6 {[%clk 00:07:11]}
{[%emt 00:00:34]} 6. c3 {[%clk 00:06:37]} {[%emt 00:00:04]} Bd6 {[%clk
00:07:13]} 7. Bd3 {[%clk 00:06:26]} O-O {[%clk 00:07:13]} 8. h3 {[%clk
00:06:07]} {[%emt 00:00:14]} Re8+ {[%clk 00:07:13]} {[%emt 00:00:10]} 9. Ne2
{[%clk 00:06:01]} {[%emt 00:00:05]} Nd7 {[%clk 00:07:10]} {[%emt 00:00:07]} 10.
Qc2 {[%clk 00:06:02]} {[%emt 00:00:04]} Nf8 {[%clk 00:07:12]} 11. O-O {[%clk
00:05:54]} {[%emt 00:00:11]} Qc7 {[%clk 00:07:12]} {[%emt 00:00:11]} 12. Bd2
{[%clk 00:05:29]} {[%emt 00:00:15]} Ng6 {[%clk 00:07:12]} {[%emt 00:00:37]} 13.
Rfe1 {[%clk 00:05:28]} Bd7 {[%clk 00:07:10]} {[%emt 00:00:03]} 14. c4 {[%clk
00:05:14]} Rad8 {[%clk 00:07:06]} {[%emt 00:00:05]} 15. Nc3 {[%clk 00:04:45]}
{[%emt 00:00:23]} Be6 {[%clk 00:06:50]} {[%emt 00:00:38]} 16. Ne4 {[%clk
00:04:28]} {[%emt 00:00:05]} Bh2+ {[%clk 00:06:40]} {[%emt 00:00:10]} 17. Kh1
{[%clk 00:04:23]} {[%emt 00:00:10]} Rxd4 {[%clk 00:05:38]} {[%emt 00:01:23]} 18.
g3 {[%clk 00:04:07]} {[%emt 00:00:06]} Red8 {[%clk 00:05:39]} 19. Re3 {[%clk
00:03:59]} {[%emt 00:00:08]} Bf5 {[%clk 00:05:25]} {[%emt 00:00:14]} 20. Bc3
{[%clk 00:03:50]} {[%emt 00:00:39]} Rxd3 {[%clk 00:05:26]} 21. Rxd3 {[%clk
00:03:46]} {[%emt 00:00:03]} Bxe4+ {[%clk 00:05:27]} 22. Kxh2 {[%clk 00:03:47]}
Bxd3 {[%clk 00:05:21]} 23. Qb3 {[%clk 00:03:24]} {[%emt 00:00:21]} Qb6 {[%clk
00:05:17]} {[%emt 00:00:06]} 24. Qxb6 {[%clk 00:03:23]} {[%emt 00:00:05]} axb6
{[%clk 00:05:18]} {[%emt 00:00:03]} 25. b3 {[%clk 00:03:09]} {[%emt 00:00:14]}
Bf5 {[%clk 00:05:16]} {[%emt 00:00:06]} 26. Re1 {[%clk 00:02:59]} {[%emt
00:00:09]} Be6 {[%clk 00:05:04]} {[%emt 00:00:17]} 27. g4 {[%clk 00:02:48]}
{[%emt 00:00:14]} f5 {[%clk 00:05:00]} {[%emt 00:00:26]} 28. Kg3 {[%clk
00:02:48]} Rd3+ {[%clk 00:04:57]} 0-1

[Event "Cerrado Blitz Quart 2018"]
[Site "Quart (Valencia), Spain"]
[Date "2018.08.30"]
[Round "9.3"]
[White "Kovacevic, Slobodan"]
[Black "Alonso Garcia, Aaron"]
[Result "1-0"]
[TimeControl "7 minutos +3s por jugada"]
[WhiteTitle "IM"]
[BlackTitle "FM"]
[WhiteFideId "902152"]
[BlackFideId "24521060"]
[WhiteElo "2418"]
[BlackElo "1604"]

1. d4 {[%clk 00:07:05]} {[%emt 00:03:17]} Nf6 {[%clk 00:07:05]} {[%emt
00:00:02]} 2. Nf3 {[%clk 00:07:07]} {[%emt 00:00:02]} e6 {[%clk 00:07:05]}
{[%emt 00:00:03]} 3. Bf4 {[%clk 00:07:08]} {[%emt 00:00:01]} b6 {[%clk
00:07:07]} 4. Nbd2 {[%clk 00:07:10]} Bb7 {[%clk 00:07:09]} 5. e3 {[%clk
00:07:12]} {[%emt 00:00:02]} Be7 {[%clk 00:07:08]} {[%emt 00:00:04]} 6. h3
{[%clk 00:07:14]} c5 {[%clk 00:07:09]} {[%emt 00:00:02]} 7. Bd3 {[%clk
00:07:14]} {[%emt 00:00:02]} Nc6 {[%clk 00:07:08]} {[%emt 00:00:05]} 8. c3
{[%clk 00:07:16]} {[%emt 00:00:01]} O-O {[%clk 00:07:00]} {[%emt 00:00:10]} 9.
O-O {[%clk 00:07:17]} {[%emt 00:00:02]} Re8 {[%clk 00:06:31]} {[%emt 00:00:32]}
10. Qe2 {[%clk 00:07:17]} {[%emt 00:00:02]} d5 {[%clk 00:06:14]} {[%emt
00:00:20]} 11. Bh2 {[%clk 00:07:18]} {[%emt 00:00:02]} Bf8 {[%clk 00:06:08]}
{[%emt 00:00:11]} 12. Rfd1 {[%clk 00:07:15]} {[%emt 00:00:06]} Nd7 {[%clk
00:05:43]} {[%emt 00:00:28]} 13. Ne5 {[%clk 00:05:45]} {[%emt 00:01:33]} Rc8
{[%clk 00:04:38]} {[%emt 00:01:08]} 14. Bxh7+ {[%clk 00:05:06]} {[%emt
00:00:43]} Kxh7 {[%clk 00:04:40]} 15. Qh5+ {[%clk 00:05:08]} Kg8 {[%clk
00:04:43]} 16. Qxf7+ {[%clk 00:05:10]} {[%emt 00:00:02]} Kh7 {[%clk 00:04:45]}
17. Nxd7 {[%clk 00:04:53]} {[%emt 00:00:21]} Qe7 {[%clk 00:04:10]} {[%emt
00:00:38]} 18. Qh5+ {[%clk 00:03:35]} {[%emt 00:01:21]} Kg8 {[%clk 00:04:13]}
19. Ne5 {[%clk 00:03:36]} {[%emt 00:00:02]} Nxe5 {[%clk 00:04:12]} {[%emt
00:00:04]} 20. Bxe5 {[%clk 00:03:38]} Qf7 {[%clk 00:04:14]} 21. Qe2 {[%clk
00:03:22]} {[%emt 00:00:19]} Be7 {[%clk 00:03:44]} {[%emt 00:00:34]} 22. f4
{[%clk 00:03:23]} {[%emt 00:00:02]} Qg6 {[%clk 00:03:21]} {[%emt 00:00:26]} 23.
Qg4 {[%clk 00:03:04]} {[%emt 00:00:22]} Qxg4 {[%clk 00:03:09]} {[%emt
00:00:15]} 24. hxg4 {[%clk 00:03:06]} {[%emt 00:00:01]} Ba6 {[%clk 00:03:12]}
25. Kf2 {[%clk 00:03:01]} {[%emt 00:00:06]} Kf7 {[%clk 00:03:13]} {[%emt
00:00:02]} 26. Rh1 {[%clk 00:02:54]} {[%emt 00:00:10]} Rh8 {[%clk 00:03:07]}
{[%emt 00:00:09]} 27. e4 {[%clk 00:02:53]} {[%emt 00:00:05]} cxd4 {[%clk
00:03:04]} {[%emt 00:00:06]} 28. Bxd4 {[%clk 00:02:54]} {[%emt 00:00:02]} dxe4
{[%clk 00:02:48]} {[%emt 00:00:18]} 29. Nxe4 {[%clk 00:02:52]} {[%emt
00:00:05]} Bb7 {[%clk 00:02:50]} {[%emt 00:00:02]} 30. Ke3 {[%clk 00:02:44]}
{[%emt 00:00:11]} Bd5 {[%clk 00:02:47]} {[%emt 00:00:07]} 31. a3 {[%clk
00:02:40]} {[%emt 00:00:07]} a6 {[%clk 00:02:26]} {[%emt 00:00:23]} 32. Rh5
{[%clk 00:02:29]} {[%emt 00:00:13]} Rh6 {[%clk 00:01:19]} {[%emt 00:01:11]} 33.
Rah1 {[%clk 00:02:22]} {[%emt 00:00:10]} Rg6 {[%clk 00:01:18]} {[%emt
00:00:04]} 34. g5 {[%clk 00:02:19]} {[%emt 00:00:06]} b5 {[%clk 00:01:18]}
{[%emt 00:00:03]} 35. Rh8 {[%clk 00:02:03]} {[%emt 00:00:19]} Rg8 {[%clk
00:00:54]} {[%emt 00:00:28]} 36. g4 {[%clk 00:01:46]} {[%emt 00:00:20]} a5
{[%clk 00:00:36]} {[%emt 00:00:21]} 37. R1h2 {[%clk 00:01:32]} {[%emt
00:00:16]} b4 {[%clk 00:00:34]} {[%emt 00:00:05]} 38. cxb4 {[%clk 00:01:21]}
{[%emt 00:00:14]} axb4 {[%clk 00:00:36]} {[%emt 00:00:01]} 39. a4 {[%clk
00:01:24]} e5 {[%clk 00:00:29]} {[%emt 00:00:09]} 40. Bxe5 {[%emt 00:00:05]}
Ra6 {[%clk 00:00:29]} {[%emt 00:00:02]} 41. Rxg8 {[%clk 00:01:16]} {[%emt
00:00:10]} Kxg8 {[%clk 00:00:31]} 42. Rd2 {[%clk 00:01:16]} {[%emt 00:00:04]}
Bxe4 {[%clk 00:00:15]} {[%emt 00:00:19]} 43. Kxe4 {[%clk 00:01:17]} {[%emt
00:00:02]} Rxa4 {[%emt 00:00:02]} 44. Rd7 {[%clk 00:01:16]} {[%emt 00:00:02]}
Bf8 {[%clk 00:00:18]} {[%emt 00:00:03]} 45. g6 {[%clk 00:01:14]} {[%emt
00:00:05]} Ra6 {[%clk 00:00:19]} {[%emt 00:00:03]} 46. f5 {[%clk 00:01:08]}
{[%emt 00:00:08]} Rc6 {[%clk 00:00:21]} 47. Rd8 {[%clk 00:01:02]} {[%emt
00:00:10]} b3 {[%clk 00:00:22]} {[%emt 00:00:03]} 48. Rb8 {[%clk 00:01:00]}
{[%emt 00:00:04]} Rc4+ {[%clk 00:00:22]} {[%emt 00:00:03]} 49. Kf3 {[%clk
00:00:53]} {[%emt 00:00:09]} Rc6 {[%clk 00:00:18]} {[%emt 00:00:07]} 50. Bc3
{[%clk 00:00:51]} {[%emt 00:00:04]} Rc4 {[%clk 00:00:15]} {[%emt 00:00:07]} 51.
Ke2 {[%clk 00:00:47]} {[%emt 00:00:06]} Rxg4 {[%clk 00:00:11]} {[%emt
00:00:07]} 52. Rxb3 {[%clk 00:00:45]} {[%emt 00:00:05]} Re4+ {[%clk 00:00:10]}
{[%emt 00:00:04]} 53. Kf3 {[%clk 00:00:46]} {[%emt 00:00:03]} Re8 {[%clk
00:00:13]} 54. Rb7 {[%clk 00:00:46]} {[%emt 00:00:03]} Rc8 {[%clk 00:00:13]}
{[%emt 00:00:03]} 55. Be5 {[%clk 00:00:42]} {[%emt 00:00:06]} Rc5 {[%clk
00:00:08]} {[%emt 00:00:09]} 56. Ke4 {[%clk 00:00:35]} {[%emt 00:00:09]} Rc1
{[%clk 00:00:09]} {[%emt 00:00:03]} 57. Rb8 {[%clk 00:00:26]} {[%emt 00:00:12]}
Rc6 {[%clk 00:00:10]} {[%emt 00:00:03]} 58. Bd4 {[%clk 00:00:16]} {[%emt
00:00:12]} Ra6 {[%clk 00:00:07]} {[%emt 00:00:07]} 59. b4 {[%emt 00:00:14]} 1-0

[Event "Cerrado Blitz Quart 2018"]
[Site "Quart (Valencia), Spain"]
[Date "2018.08.30"]
[Round "9.4"]
[White "Lara Lopez, Sergio"]
[Black "Galvan, Jesus"]
[Result "1-0"]
[TimeControl "7 minutos +3s por jugada"]
[BlackTitle "FM"]
[WhiteFideId "2268400"]
[BlackFideId "3800458"]
[WhiteElo "2165"]
[BlackElo "2225"]

1. e4 {[%clk 00:07:05]} c5 {[%clk 00:07:05]} 2. Nc3 {[%clk 00:07:07]} {[%emt
00:00:01]} Nc6 {[%clk 00:07:08]} 3. g3 {[%clk 00:07:09]} g6 {[%clk 00:07:08]}
{[%emt 00:00:02]} 4. Bg2 {[%clk 00:07:11]} Bg7 {[%clk 00:07:10]} {[%emt
00:00:02]} 5. d3 {[%clk 00:07:13]} d6 {[%clk 00:07:12]} {[%emt 00:00:02]} 6. f4
{[%clk 00:07:14]} {[%emt 00:00:02]} e6 {[%clk 00:07:14]} {[%emt 00:00:01]} 7.
Nf3 {[%clk 00:07:15]} {[%emt 00:00:02]} Nge7 {[%clk 00:07:16]} 8. Be3 {[%clk
00:07:16]} {[%emt 00:00:02]} Nd4 {[%clk 00:07:18]} 9. O-O {[%clk 00:07:13]}
{[%emt 00:00:06]} O-O {[%clk 00:07:18]} {[%emt 00:00:02]} 10. Qd2 {[%clk
00:07:14]} {[%emt 00:00:02]} f5 {[%clk 00:07:05]} {[%emt 00:00:17]} 11. Nd1
{[%clk 00:07:04]} {[%emt 00:00:13]} Rb8 {[%clk 00:06:54]} {[%emt 00:00:14]} 12.
c3 {[%clk 00:07:06]} {[%emt 00:00:02]} Nxf3+ {[%clk 00:06:54]} {[%emt
00:00:02]} 13. Bxf3 {[%clk 00:07:04]} {[%emt 00:00:05]} b6 {[%clk 00:06:57]}
{[%emt 00:00:01]} 14. d4 {[%clk 00:06:53]} {[%emt 00:00:13]} fxe4 {[%clk
00:06:50]} {[%emt 00:00:09]} 15. Bxe4 {[%clk 00:06:55]} {[%emt 00:00:02]} Bb7
{[%clk 00:06:53]} 16. Nf2 {[%clk 00:06:53]} {[%emt 00:00:05]} Nd5 {[%clk
00:06:31]} {[%emt 00:00:25]} 17. Rae1 {[%clk 00:06:35]} {[%emt 00:00:21]} Nxe3
{[%clk 00:06:14]} {[%emt 00:00:19]} 18. Rxe3 {[%clk 00:06:28]} {[%emt
00:00:10]} cxd4 {[%clk 00:06:13]} {[%emt 00:00:04]} 19. cxd4 {[%clk 00:06:28]}
{[%emt 00:00:04]} Bd5 {[%clk 00:05:39]} {[%emt 00:00:36]} 20. Nh3 {[%clk
00:05:50]} {[%emt 00:00:40]} Qf6 {[%clk 00:05:20]} {[%emt 00:00:23]} 21. Rd1
{[%clk 00:05:35]} {[%emt 00:00:18]} Bxe4 {[%clk 00:04:39]} {[%emt 00:00:44]} 22.
Rxe4 {[%clk 00:05:37]} Qf5 {[%clk 00:04:42]} 23. Nf2 {[%clk 00:04:56]} {[%emt
00:00:44]} Qd5 {[%clk 00:04:44]} {[%emt 00:00:01]} 24. Qe2 {[%clk 00:04:39]}
{[%emt 00:00:20]} Rfe8 {[%clk 00:04:26]} {[%emt 00:00:21]} 25. b3 {[%clk
00:04:39]} {[%emt 00:00:03]} Rbc8 {[%clk 00:04:21]} {[%emt 00:00:07]} 26. g4
{[%clk 00:04:31]} {[%emt 00:00:12]} b5 {[%clk 00:03:33]} {[%emt 00:00:51]} 27.
g5 {[%clk 00:03:58]} {[%emt 00:00:36]} a5 {[%clk 00:03:25]} {[%emt 00:00:12]}
28. Ng4 {[%clk 00:03:48]} {[%emt 00:00:13]} Kh8 {[%clk 00:02:55]} {[%emt
00:00:33]} 29. h4 {[%clk 00:03:48]} {[%emt 00:00:03]} Rc3 {[%clk 00:02:38]}
{[%emt 00:00:20]} 30. Nf2 {[%clk 00:03:16]} {[%emt 00:00:35]} Qf5 {[%clk
00:02:20]} {[%emt 00:00:21]} 31. Rd3 {[%clk 00:03:14]} {[%emt 00:00:04]} Rc1+
{[%clk 00:02:21]} {[%emt 00:00:03]} 32. Kg2 {[%clk 00:03:15]} {[%emt 00:00:03]}
b4 {[%clk 00:02:18]} {[%emt 00:00:06]} 33. d5 {[%clk 00:02:58]} {[%emt
00:00:20]} e5 {[%clk 00:02:20]} {[%emt 00:00:01]} 34. fxe5 {[%clk 00:02:49]}
{[%emt 00:00:11]} Bxe5 {[%clk 00:02:21]} 35. Rf3 {[%clk 00:02:38]} {[%emt
00:00:15]} Qc8 {[%clk 00:02:03]} {[%emt 00:00:21]} 36. Rf7 {[%clk 00:02:26]}
{[%emt 00:00:15]} Rc7 {[%clk 00:01:54]} {[%emt 00:00:12]} 37. Rxc7 {[%clk
00:02:08]} {[%emt 00:00:21]} Qxc7 {[%clk 00:01:56]} 38. Ng4 {[%clk 00:02:10]}
Kg7 {[%clk 00:01:24]} {[%emt 00:00:35]} 39. Nf6 {[%clk 00:01:59]} {[%emt
00:00:14]} Rc8 {[%clk 00:01:16]} {[%emt 00:00:11]} 40. Rc4 {[%clk 00:01:39]}
{[%emt 00:00:23]} Qb7 {[%clk 00:01:17]} {[%emt 00:00:02]} 41. h5 {[%clk
00:01:22]} {[%emt 00:00:20]} Bxf6 {[%clk 00:00:41]} {[%emt 00:00:40]} 42. gxf6+
{[%clk 00:01:24]} Kg8 {[%clk 00:00:13]} {[%emt 00:00:31]} 43. Qe6+ {[%clk
00:01:24]} {[%emt 00:00:02]} Kh8 {[%emt 00:00:03]} 1-0